Cogmind - Beta 15 @@@ ROGUE MODE // 2025.08.10 @ 14:41:31 Player: Mx. Foxy Fox Result: Destroyed by 1W-HD2(R) with Subdweller Laser Performance ------------- Evolutions (0) 0 Regions Visited (2) 400 Robots Destroyed (10) 50 Value Destroyed (261) 261 Prototype IDs (0) 0 Alien Tech Used (0) 0 Bonus (0) 0 TOTAL SCORE: 711 Bonus ------- None Cogmind --------- Core Integrity 0/250 Matter 294/300 Energy 99/100 System Corruption 0% Temperature Cool (12) Movement Walking (190) Ox1 Location -10/Subcaves Parts ------- > --- POWER (1) -------- (None) > --- PROPULSION (2) --- Aluminum Leg > --- UTILITY (2) ------ Medium Storage Unit Weapon Shielding > --- WEAPON (2) ------- Medium Laser Assault Rifle > --- INVENTORY (10) --- Light Ion Engine Light Treads Light Treads Aluminum Leg Small Storage Unit Scrap Shield Medium Laser Small Laser Datajack Peak State ------------ > --- POWER ------------ Light Ion Engine > --- PROPULSION ------- Aluminum Leg Aluminum Leg > --- UTILITY ---------- Small Storage Unit Medium Storage Unit > --- WEAPON ----------- EM Pulse Gun Small Laser > --- INVENTORY -------- Light Ion Engine Light Treads Light Treads Small Laser [Rating: 7] Favorites ----------- Power Light Ion Engine Engine Light Ion Engine Propulsion Aluminum Leg Leg Aluminum Leg Utility Medium Storage Unit Storage Medium Storage Unit Protection Weapon Shielding Weapon Medium Laser Energy Gun Medium Laser Ballistic Gun Assault Rifle Build | -11 -10 -10 ------- Run | Yrd Mat Sub Slots Evolved . | . . . Power . | . . . Propulsion . | . . . Utility . | . . . Weapon . | . . . Parts Attached 13 | 6 7 . Power 2 | 1 1 . Engine 2 | 1 1 . Core . | . . . Reactor . | . . . Propulsion 3 | 2 1 . Treads . | . . . Leg 3 | 2 1 . Wheel . | . . . Hover . | . . . Flight . | . . . Utility 3 | 1 2 . Device . | . . . Storage 2 | 1 1 . Processor . | . . . Hackware . | . . . Protection 1 | . 1 . Artifact . | . . . Weapon 5 | 2 3 . Energy Gun 4 | 2 2 . Energy Cannon . | . . . Ballistic Gun 1 | . 1 . Ballistic Cannon . | . . . Launcher . | . . . Special Weapon . | . . . Impact Weapon . | . . . Slashing Weapon . | . . . Piercing Weapon . | . . . Special Melee Weapon . | . . . Unidentified Prototypes . | . . . Parts Lost 5 | . 4 1 Power 2 | . 1 1 Propulsion 2 | . 2 . Utility . | . . . Weapon 1 | . 1 . Highest Loss Streak 2 | . 2 1 To Critical Strikes . | . . . Average Backups 7 | 2 7 8 Power . | . 1 1 Propulsion 3 | 1 3 3 Utility 1 | . . 1 Weapon 1 | . 1 2 Tool/Special . | . . . Unused Backups 7 | . . 7 Power 1 | . . 1 Propulsion 3 | . . 3 Utility 1 | . . 1 Weapon 1 | . . 1 Tool/Special 1 | . . 1 Average Slot Usage (%) 90 | . 93 83 Engine 12 | . 12 12 Leg 23 | . 26 14 Storage 14 | . 14 14 Protection 11 | . 11 14 Energy Gun 23 | . 26 14 Ballistic Gun 4 | . 1 14 Peak Build Rating 7 | 6 7 7 Average Rating 6 | 4 6 6 On Entrance 4 | . 6 6 Naked Turns . | . . . Heaviest Build 18 | 11 18 18 Greatest Support 20 | 20 20 10 Greatest Overweight (x) 1 | . 1 1 Average Overweight (x) . | . . 1 Largest Inventory Capacity 10 | 8 10 10 Average Capacity 9 | 7 9 10 Most Carried 10 | 5 9 10 Average Carried 7 | 2 7 9 Final Capacity 10 | 8 10 10 Final Carried 10 | 4 8 10 Class Distribution -------------------- 100% | Mutant Dominant Class ---------------- Mutant | -10/Materials Mutant | -10/Subcaves Resources | -11 -10 -10 ----------- Run | Yrd Mat Sub Matter Collected 336 | 252 84 . Remotely . | . . . Salvage Created 330 | . 330 . Parts 16 | . 16 . Haulers Intercepted . | . . . Recyclers Shooed 1 | . 1 . Parts Field Recycled . | . . . Retrieved Matter . | . . . Parts Self-Destructed 6 | . . 6 Prevented . | . . . Kills | -11 -10 -10 ------- Run | Yrd Mat Sub Combat Hostiles Destroyed 9 | . 9 . Guns 8 | . 8 . Classes Destroyed 3 | . 3 . Worker 1 | . 1 . Swarmer 3 | . 3 . Grunt 6 | . 6 . Best Kill Streak 3 | . 3 . Combat Bots Only 3 | . 3 . Max Kills in Single Turn 2 | . 2 . Gunslinging 1 | . 1 . Exploded . | . . . Melee . | . . . Uniques/NPCs Destroyed . | . . . Combat | -11 -10 -10 -------- Run | Yrd Mat Sub Hostile Shots Fired 96 | . 88 8 Missed 29 | . 29 . Hits 67 | . 59 8 Projectile 67 | . 59 8 Critical Strikes 1 | . 1 . Actively Blocked 1 | . 1 . Damage Taken 852 | . 689 163 Core 258 | . 221 37 Absorbed by Shields . | . . . Redirected to Shielding 46 | . 34 12 Core Remaining (%) 100 | 100 . . Volleys Fired 38 | . 36 2 Largest 2 | . 2 2 Hottest 100 | . 100 70 Shots Fired 76 | . 72 4 Gun 76 | . 72 4 Cannon . | . . . Launcher . | . . . Special . | . . . Kinetic 9 | . 7 2 Thermal 60 | . 58 2 Explosive . | . . . Electromagnetic 7 | . 7 . Robot Hit Streak 8 | . 8 7 Robot Miss Streak 3 | . 3 1 Penetration Max . | . . . Secondary Targets 2 | . 2 . Max Gunslinging Chain 1 | . 1 . Shots Hit Robots 51 | . 48 3 Core Hits 19 | . 17 2 Critical Kills . | . . . Critical Parts Destroyed . | . . . Critical Strikes 5 | . 5 . Burn 5 | . 5 . Melee Attacks . | . . . Impact . | . . . Slashing . | . . . Piercing . | . . . Sneak Attacks . | . . . Combat Hostiles . | . . . Follow-up Attacks . | . . . Damage Inflicted 725 | . 672 53 Guns 725 | . 672 53 Cannons . | . . . Explosions . | . . . Melee . | . . . Ramming . | . . . Kinetic 94 | . 65 29 Thermal 546 | . 522 24 Explosive . | . . . Electromagnetic 85 | . 85 . Impact . | . . . Slashing . | . . . Piercing . | . . . Highest Corruption . | . . . Average Corruption . | . . . Corruption Purged . | . . . Corruption Blocked . | . . . Overload Shots . | . . . Overflow Damage . | . . . Projectiles . | . . . Explosions . | . . . Melee . | . . . Knockbacks . | . . . Impact . | . . . Kinetic . | . . . Secondary . | . . . Self-Inflicted Damage . | . . . Shots . | . . . Rammed . | . . . Targets Rammed . | . . . Kicked . | . . . Crushed . | . . . Highest Temperature 336 | . 336 . Average Temperature 113 | . 113 . Received Heat Transfer 399 | . 363 36 Siege Activations . | . . . Martial Activations . | . . . Shielding Activations . | . . . Robots Disrupted . | . . . Combat Hostiles . | . . . Robots Corrupted . | . . . Combat Hostiles . | . . . Parts Fried . | . . . Impact Corruptions . | . . . Robots Melted 1 | . 1 . Combat Hostiles 1 | . 1 . Parts Melted 7 | . 7 . Heat Transferred 1951 | . 1877 74 Parts Sabotaged . | . . . Parts Stolen . | . . . Parts Stripped . | . . . Power Chain Reactions . | . . . Alert | -11 -10 -10 ------- Run | Yrd Mat Sub Maximum Alert Level . | . . . Low Security (%) 100 | 100 100 . Level 1 . | . . . Level 2 . | . . . Level 3 . | . . . Level 4 . | . . . Level 5 . | . . . High Security . | . . . Max Security . | . . . Peak Influence 110 | . 110 . Initial . | . . . Average 28 | . 33 . Influence Increases 225 | . 225 . Destroy 0b10 Robot/C 180 | . 180 . Destroy 0b10 Robot/NC 5 | . 5 . Destroy Leader 40 | . 40 . Influence Decreases 225 | . 204 21 Entered New Map 11 | . . 11 Time Decay 204 | . 194 10 Lost Part 10 | . 10 . Squads Dispatched 2 | . 2 . Investigation 1 | . 1 . Extermination . | . . . Reinforcement 1 | . 1 . Assault . | . . . Garrison . | . . . Intercept . | . . . Searches Triggered . | . . . Construction Impeded . | . . . Haulers Reinforced . | . . . Active Scanning Responses . | . . . Cargo Convoy Interrupts . | . . . Stealth | -11 -10 -10 --------- Run | Yrd Mat Sub Distress Signals 2 | . 2 . Communications Jammed . | . . . Distress Signals . | . . . Times Spotted 22 | . 15 7 Peak Tracking Total 8 | . 8 6 Tactical Retreats . | . . . Traps | -11 -10 -10 ------- Run | Yrd Mat Sub Traps Triggered 1 | . 1 . Indirectly . | . . . Trap Hack Attempts . | . . . Triggered . | . . . Disarmed . | . . . Reprogrammed . | . . . Reused . | . . . Traps Extracted . | . . . Installed . | . . . Triggered . | . . . Machines | -11 -10 -10 ---------- Run | Yrd Mat Sub Machines Disabled . | . . . Max in Single Turn . | . . . Machines Repaired . | . . . Machines Dismantled . | . . . Machines Sabotaged . | . . . Overloaded Fab Kills . | . . . Hacking | -11 -10 -10 --------- Run | Yrd Mat Sub Machines Accessed 1 | . 1 . Terminals 1 | . 1 . Fabricators . | . . . Repair Stations . | . . . Recycling Units . | . . . Scanalyzers . | . . . Garrison Access . | . . . Total Hacks 1 | . 1 . Successful 1 | . 1 . Failed . | . . . Catastrophic . | . . . Database Lockouts . | . . . Manual . | . . . Terminals 1 | . 1 . Fabricators . | . . . Repair Stations . | . . . Recycling Units . | . . . Scanalyzers . | . . . Garrison Access . | . . . Terminal Hacks 1 | . 1 . Locate Traps 1 | . 1 . Fabricator Hacks . | . . . Repair Station Hacks . | . . . Recycling Unit Hacks . | . . . Scanalyzer . | . . . Garrison Access Hacks . | . . . Unauthorized Hacks . | . . . Terminals . | . . . Fabricators . | . . . Repair Stations . | . . . Recycling Units . | . . . Scanalyzers . | . . . Garrison Access . | . . . Data Cores Recovered . | . . . Used . | . . . Hacking Detections . | . . . Full Trace Events . | . . . Feedback Events . | . . . Feedback Blocked . | . . . Robot Schematics Acquired . | . . . Robots Built . | . . . Authchips . | . . . Time . | . . . Total Robot Build Rating . | . . . Part Schematics Acquired . | . . . Parts Built . | . . . Authchips . | . . . Time . | . . . Total Part Build Rating . | . . . Parts Repaired . | . . . Time . | . . . Parts Recycled . | . . . Recycled Matter . | . . . Retrieved Matter . | . . . Retrieved Components . | . . . Parts Scanalyzed . | . . . Part Schematics Acquired . | . . . Parts Damaged . | . . . Bothacking | -11 -10 -10 ------------ Run | Yrd Mat Sub Used RIF Installer . | . . . Robots Hacked . | . . . Non-combat . | . . . Combat . | . . . Robot Hacks Applied . | . . . Relay Couplers Released . | . . . Fabnet Peak Effective % . | . . . Robots Rewired . | . . . Allies Hacked . | . . . Hacks Repelled . | . . . Allies | -11 -10 -10 -------- Run | Yrd Mat Sub Total Allies . | . . . Largest Group . | . . . Highest-Rated Group . | . . . Highest-Rated Ally . | . . . Total Orders . | . . . Ally Attacks . | . . . Total Damage . | . . . Kills . | . . . Allies Corrupted . | . . . Allies Melted . | . . . Intel | -11 -10 -10 ------- Run | Yrd Mat Sub Active Infowar (turns) . | . . . Robot Analysis Total . | . . . Derelict Logs Recovered . | . . . Drone Launches . | . . . Drone Recoveries . | . . . Exploration | -11 -10 -10 ------------- Run | Yrd Mat Sub Turns Passed 917 | 118 629 170 Spaces Moved 579 | 91 402 86 Core 6 | 6 . . Treads . | . . . Legs 573 | 85 402 86 Wheels . | . . . Hover . | . . . Flight . | . . . Fastest Speed 50 | 50 120 190 Average Speed 132 | 115 123 190 Slowest Speed 190 | 120 190 190 Overloaded Moves . | . . . Propulsion Burnouts . | . . . Robots Hopped . | . . . Potential Cave-ins . | . . . Cave-ins Triggered . | . . . Exploration Rate (%) 27 | 6 68 9 Regions Visited 2 Branch Regions 1 Pre-discovered Areas . | . . . Known Exits Taken . | . . . Unknown Exits Taken 2 | 1 1 . Scrap Searched . | . . . Spaces Dug . | . . . Terrain Destroyed . | . . . Melee . | . . . Projectile . | . . . AOE . | . . . Terrain Rammed . | . . . Walls Destroyed . | . . . Machines Disabled . | . . . Actions | -11 -10 -10 --------- Run | Yrd Mat Sub Total 651 | 101 461 89 Wait 11 | . 11 . Move 577 | 90 401 86 Hop . | . . . Pick Up 10 | 5 4 1 Fast Attach 9 | 5 4 . Attach 2 | 1 1 . Detach 1 | . 1 . Swap 2 | . 2 . Drop 1 | . 1 . Fire 38 | . 36 2 Melee . | . . . Ram . | . . . Kick . | . . . Crush . | . . . Escape Stasis . | . . . Rewire . | . . . Trap . | . . . Miscellaneous . | . . . Route ------- -11/Scrapyard -10/Materials (discovered 3 exits: [*Mat x2] / [*Sub]) -10/Subcaves History --------- Turn | Location | Event 6 | -11/Scrapyard | Discovered new exit (range 14) 119 | -11/Scrapyard | Entered Materials 316 | -10/Materials | Build established: Mutant 342 | -10/Materials | Discovered new exit (range 16) 385 | -10/Materials | Core integrity fell below 50% 498 | -10/Materials | Discovered new exit (range 13) 617 | -10/Materials | Discovered new exit (range 9) 707 | -10/Materials | Core integrity fell below 20% 748 | -10/Materials | Entered Subcaves 886 | -10/Subcaves | Ambushed by swarm of Subdwellers 918 | -10/Subcaves | Destroyed by 1W-HD2(R) with Subdweller Laser Last Messages --------------- 00750_ F2-BBS(h) drops a Scrap Shield: "Protect yourself with this!" 00754_ Acquired Scrap Shield. 00886_ F2-BBS(h): "The Subs are coming!" 00893_ 0X-AEW(g): "Sorry we're late! Had another grouchy Sub to deal with. Who's the new fellow?" 00897_ HV Slug penetrates VY-G9Y(R). 00897_ HW-2ZX(R) knocked back. 00897_ Lgt. Ion Engine destroyed. 00899_ F2-BBS(h) suffers critical hit (Destroy). 00905_ F2-BBS(h) suffers critical hit (Burn). 00906_ KP-8BH(R) affixes Scrap Shield Fragment to Scrap Shield. 00906_ F2-BBS(h) destroyed. 00910_ HW-2ZX(R) suffers critical hit (Burn). 00910_ HW-2ZX(R) overheating. 00911_ LH-NBW(g) destroyed. 00914_ 0X-AEW(g) suffers critical hit (Destroy). 00914_ 0X-AEW(g) destroyed. 00917_ HW-2ZX(R) affixes Scrap Shield Fragment to Scrap Shield. 00918_ Subatomizers dissect the Disposable Heat Sink. 00918_ KP-8BH(R) affixes Scrap Shield Fragment to Scrap Shield. Map ----- +----------------------------------------------------+ | ##### #???????????????? | | ?# ### #???????????????? | | ?## ## #?## % % #???????????????? | | % ???###?## #??# ##??????????????? | | ????????### #??## #??????????????? | | ???????????## ##???# #??????????????? | | ????????????# #????## %###??????????????? | | ???????????? ##?????##% ##????????????????? | | ???????????? #??????## %#?????????????????? | | ???????????? ##??### #?????????????????? | | ??????????? ### #?????????????????? | | ??????????? ##?????????????????? | | ??????????? ##?????????????????? | | ??????????? #### ####??????????????? | | ??????????????????## #??????????????? | | ???????????????????# #??????????????? | | ???????????????????# ## ##??????????????? | | ???????????????????## #?# #???????????????? | | ????????????????????###??## #???????????????? | | ?????????????????????????## ##??????????????? | | ????????????????????????## #??????????????? | | ????????????????????????# ##?????????????? | | ????????????????????##### #?????????????? | | ????????????????????# #?????????????? | | ????????????????????## ##?????????????? | | ?????????????????????### @ ##??????????????? | | ???????????????????????##!=* %##???????????????? | | ????????????????????????#%=%g##????????????????? | | ????????????????????????#R[R##?????????????????? | | ????????????????????????#!R=#??????????????????? | | ????????????????????????# %RR#?????????????????? | | ????????????????????????## [ !#????????????????? | | ?????????????????????????# %& "???????????????? | | ?????????????????????????##% ##??????????????? | | ??????????????????????????# ####???????????????? | | ?????????????????????????? ##??????????????????? | | ?????????????????????????? ????????????????????? | | ??????????????????????????#????????????????????? | | ???????????????????????????????????????????????? | | ???????????????????????????????????????????????? | | ???????????????????????????????????????????????? | | ???????????????????????????????????????????????? | | ???????????????????????????????????????????????? | | ???????????????????????????????????????????????? | | ???????????????????????????????????????????????? | | ???????????????????????????????????????????????? | | ???????????????????????????????????????????????? | | ???????????????????????????????????????????????? | | ???????????????????????????????????????????????? | | ???????????????????????????????????????????????? | +----------------------------------------------------+ Best States ------------- Heat Dissipation 25 Energy Generation 10 Energy Capacity 125 Matter Stores 300 Matter Capacity 300 Sight Range 16 Terrain Scan Density 10 Weapon Shielding 33 Evasion (%) 55 Item Schematics ----------------- None Robot Schematics ------------------ None Fabricated ------------ Nothing Repaired ---------- Nothing Alien Tech Used ----------------- None Achievements -------------- None Challenges ------------ None Game ------ Seed TerrainDeliveryNanosword Manual? 0 Play Time 00:13:28 Cumulative 13.7 hours Start 2025.08.10 @ 14:28:01 End 2025.08.10 @ 14:41:31 Sessions 1 Manual Loads 0 Difficulty Rogue Special Mode None Game No. 7 Rogue 7 Adventurer 0 Explorer 0 Win Type - Total 0 Types 0/0/0/0/0/0/0/0/0/0 Lore% 4 Gallery% 13 Achievement% 11 Wizard Run 0 Options --------- Layout 0 ASCII 0 Keyboard 1 Movement Vi Keybinds 0 Fullscreen 0 Font 16/Terminus Map View 76x50 Zoom Use 0% Tactical HUD 1 Map Filters NONE Filters NONE Steam 1 RUN: 0078d245-847c-4d7a-a7b3-d1e1d2e04d45